[Event "*** Titled Tuesday Blitz"]
[Site "Chess.com"]
[Date "2021.02.02"]
[Round "9"]
[White "kingofthenil"]
[Black "HristosBanikas"]
[Result "0-1"]
[WhiteElo "2669"]
[BlackElo "2831"]
[TimeControl "180+1"]
[EndTime "11:45:54 PST"]
[Termination "HristosBanikas won by resignation"]

1. e4 {[%clk 0:03:00.9]} 1... c5 {[%clk 0:02:59.5]} 2. d3 {[%clk 0:02:59.6]}
2... g6 {[%clk 0:02:58.8]} 3. g3 {[%clk 0:02:59.8]} 3... Bg7 {[%clk 0:02:54.6]}
4. Bg2 {[%clk 0:02:56.4]} 4... Nc6 {[%clk 0:02:53.8]} 5. f4 {[%clk 0:02:56.8]}
5... d6 {[%clk 0:02:53.5]} 6. Nf3 {[%clk 0:02:56.9]} 6... e5 {[%clk 0:02:50]} 7.
O-O {[%clk 0:02:56.6]} 7... Nge7 {[%clk 0:02:44]} 8. Nc3 {[%clk 0:02:56.7]} 8...
O-O {[%clk 0:02:43.5]} 9. f5 {[%clk 0:02:56.5]} 9... gxf5 {[%clk 0:02:43.1]} 10.
Nh4 {[%clk 0:02:56.8]} 10... fxe4 {[%clk 0:02:29.6]} 11. dxe4 {[%clk 0:02:57.7]}
11... Nd4 {[%clk 0:02:26.2]} 12. Nd5 {[%clk 0:02:24.8]} 12... Nxd5 {[%clk
0:02:24.7]} 13. exd5 {[%clk 0:02:25.7]} 13... f5 {[%clk 0:02:24.5]} 14. c3
{[%clk 0:02:24.8]} 14... Nb5 {[%clk 0:02:24.5]} 15. Qh5 {[%clk 0:02:24.1]} 15...
Qe8 {[%clk 0:01:56.3]} 16. Qxe8 {[%clk 0:02:22.5]} 16... Rxe8 {[%clk 0:01:57.2]}
17. Nxf5 {[%clk 0:02:23.1]} 17... Bxf5 {[%clk 0:01:53.2]} 18. Rxf5 {[%clk
0:02:24]} 18... Rf8 {[%clk 0:01:54.1]} 19. Rxf8+ {[%clk 0:02:01]} 19... Rxf8
{[%clk 0:01:55]} 20. Bg5 {[%clk 0:02:01.2]} 20... h6 {[%clk 0:01:48.3]} 21. Be3
{[%clk 0:01:59.7]} 21... Nc7 {[%clk 0:01:45.1]} 22. Be4 {[%clk 0:01:36.5]} 22...
Ne8 {[%clk 0:01:41.3]} 23. b4 {[%clk 0:01:31.2]} 23... b6 {[%clk 0:01:41]} 24.
a4 {[%clk 0:00:42.7]} 24... Kf7 {[%clk 0:01:36.7]} 25. a5 {[%clk 0:00:33.9]}
25... Nf6 {[%clk 0:01:21.5]} 26. Bg2 {[%clk 0:00:31.1]} 26... Re8 {[%clk
0:01:14.2]} 27. axb6 {[%clk 0:00:30]} 27... axb6 {[%clk 0:01:14]} 28. Ra6 {[%clk
0:00:28]} 28... e4 {[%clk 0:01:06.7]} 29. c4 {[%clk 0:00:22.7]} 29... Ng4 {[%clk
0:01:06.1]} 30. Bf4 {[%clk 0:00:23.3]} 30... Bd4+ {[%clk 0:01:05.7]} 31. Kf1
{[%clk 0:00:23.3]} 31... cxb4 {[%clk 0:01:03.8]} 32. Bh3 {[%clk 0:00:21.2]}
32... h5 {[%clk 0:00:59.7]} 33. Ke2 {[%clk 0:00:12.2]} 33... b3 {[%clk
0:00:59.8]} 34. Ra3 {[%clk 0:00:09.4]} 34... b2 {[%clk 0:00:57.1]} 35. Rb3
{[%clk 0:00:10.3]} 35... Ra8 {[%clk 0:00:56.1]} 36. Bg2 {[%clk 0:00:08.2]} 36...
Ra2 {[%clk 0:00:53.5]} 37. Bd2 {[%clk 0:00:03.3]} 37... e3 {[%clk 0:00:52]} 38.
h3 {[%clk 0:00:01.9]} 38... exd2 {[%clk 0:00:48.1]} 39. hxg4 {[%clk 0:00:02.8]}
39... d1=Q+ {[%clk 0:00:48.7]} 40. Kxd1 {[%clk 0:00:02.8]} 40... Ra1+ {[%clk
0:00:49.4]} 41. Kc2 {[%clk 0:00:02.6]} 41... Rc1+ {[%clk 0:00:48.8]} 0-1

[Event "*** Titled Tuesday Blitz"]
[Site "Chess.com"]
[Date "2021.02.02"]
[Round "9"]
[White "Ajedrez_con_German"]
[Black "JoliyRoger"]
[Result "1-0"]
[WhiteElo "2607"]
[BlackElo "2407"]
[TimeControl "180+1"]
[EndTime "11:45:55 PST"]
[Termination "Ajedrez_con_German won on time"]

1. d4 {[%clk 0:03:00.9]} 1... Nf6 {[%clk 0:02:55.5]} 2. Nf3 {[%clk 0:03:00.7]}
2... e6 {[%clk 0:02:55.3]} 3. c4 {[%clk 0:03:00.7]} 3... Bb4+ {[%clk 0:02:53.4]}
4. Bd2 {[%clk 0:03:00.7]} 4... Qe7 {[%clk 0:02:52.7]} 5. g3 {[%clk 0:03:00.5]}
5... b6 {[%clk 0:02:52.3]} 6. Bg2 {[%clk 0:03:00.9]} 6... Bb7 {[%clk 0:02:53]}
7. O-O {[%clk 0:03:01.4]} 7... Bxd2 {[%clk 0:02:51]} 8. Qxd2 {[%clk 0:03:01.7]}
8... O-O {[%clk 0:02:50.7]} 9. Nc3 {[%clk 0:03:02.1]} 9... d5 {[%clk 0:02:06.4]}
10. cxd5 {[%clk 0:02:56.7]} 10... exd5 {[%clk 0:02:01.3]} 11. Ne5 {[%clk
0:02:55.4]} 11... Nbd7 {[%clk 0:01:54.4]} 12. Nxd7 {[%clk 0:02:55.4]} 12... Qxd7
{[%clk 0:01:53.9]} 13. Rac1 {[%clk 0:02:55.1]} 13... Rfe8 {[%clk 0:01:51]} 14.
e3 {[%clk 0:02:54.6]} 14... Rad8 {[%clk 0:01:44]} 15. Rc2 {[%clk 0:02:53.7]}
15... h5 {[%clk 0:01:39]} 16. Qd3 {[%clk 0:02:45.4]} 16... c6 {[%clk 0:01:31]}
17. Ne2 {[%clk 0:02:32.7]} 17... g5 {[%clk 0:01:15.6]} 18. Qa3 {[%clk 0:02:31]}
18... a5 {[%clk 0:01:05.3]} 19. Nc1 {[%clk 0:02:25.5]} 19... Ne4 {[%clk
0:00:42.2]} 20. Nd3 {[%clk 0:02:22]} 20... f6 {[%clk 0:00:42.5]} 21. Qb3 {[%clk
0:02:15.3]} 21... Kg7 {[%clk 0:00:42.1]} 22. Qxb6 {[%clk 0:02:07.6]} 22... Rb8
{[%clk 0:00:40.3]} 23. Bxe4 {[%clk 0:02:00.8]} 23... Ba8 {[%clk 0:00:19.7]} 24.
Nc5 {[%clk 0:01:47.2]} 24... Qd6 {[%clk 0:00:15.4]} 25. Qxa5 {[%clk 0:01:04.5]}
25... dxe4 {[%clk 0:00:15.5]} 26. Nb3 {[%clk 0:00:50.6]} 26... h4 {[%clk
0:00:14.3]} 27. Qc5 {[%clk 0:00:50.4]} 27... Qe6 {[%clk 0:00:13.3]} 28. d5
{[%clk 0:00:48.8]} 28... cxd5 {[%clk 0:00:11.6]} 29. Nd4 {[%clk 0:00:45.6]}
29... Qg4 {[%clk 0:00:05.5]} 30. Qc7+ {[%clk 0:00:43]} 30... Kg6 {[%clk
0:00:05.8]} 31. Rfc1 {[%clk 0:00:37.5]} 31... h3 {[%clk 0:00:05.4]} 32. Qc3
{[%clk 0:00:29.3]} 32... Bb7 {[%clk 0:00:02.9]} 33. Qe1 {[%clk 0:00:27.7]} 33...
Ba6 {[%clk 0:00:03]} 34. Qd1 {[%clk 0:00:26.3]} 1-0

[Event "*** Titled Tuesday Blitz"]
[Site "Chess.com"]
[Date "2021.02.02"]
[Round "9"]
[White "MaevskiyNikolay"]
[Black "DenLaz"]
[Result "0-1"]
[WhiteElo "2578"]
[BlackElo "2812"]
[TimeControl "180+1"]
[EndTime "11:45:59 PST"]
[Termination "DenLaz won by checkmate"]

1. d4 {[%clk 0:03:00.9]} 1... d5 {[%clk 0:02:59.2]} 2. c4 {[%clk 0:02:59]} 2...
e6 {[%clk 0:02:58]} 3. Nf3 {[%clk 0:02:59]} 3... Nf6 {[%clk 0:02:57.7]} 4. g3
{[%clk 0:02:59.5]} 4... Bb4+ {[%clk 0:02:56.9]} 5. Bd2 {[%clk 0:02:59]} 5... Be7
{[%clk 0:02:57.3]} 6. Bg2 {[%clk 0:02:59.4]} 6... O-O {[%clk 0:02:57.9]} 7. O-O
{[%clk 0:02:59.6]} 7... c6 {[%clk 0:02:58.4]} 8. Qc2 {[%clk 0:02:59.8]} 8...
Nbd7 {[%clk 0:02:58.6]} 9. Rd1 {[%clk 0:02:59.9]} 9... b6 {[%clk 0:02:58.6]} 10.
Bf4 {[%clk 0:02:59.8]} 10... Ba6 {[%clk 0:02:58.7]} 11. Ne5 {[%clk 0:02:59.7]}
11... Rc8 {[%clk 0:02:57.8]} 12. Nc3 {[%clk 0:02:56.4]} 12... Bxc4 {[%clk
0:02:57.3]} 13. Nxc4 {[%clk 0:02:51.7]} 13... dxc4 {[%clk 0:02:58.2]} 14. Qa4
{[%clk 0:02:46.4]} 14... b5 {[%clk 0:02:47.9]} 15. Qxa7 {[%clk 0:02:45.9]} 15...
Qb6 {[%clk 0:02:47.2]} 16. Qxb6 {[%clk 0:02:34.5]} 16... Nxb6 {[%clk 0:02:48.1]}
17. a3 {[%clk 0:02:14.7]} 17... Nfd5 {[%clk 0:02:43.2]} 18. Bd2 {[%clk
0:02:14.1]} 18... Rfd8 {[%clk 0:02:37.9]} 19. e4 {[%clk 0:02:14]} 19... Nxc3
{[%clk 0:02:37.1]} 20. Bxc3 {[%clk 0:02:09.3]} 20... Na4 {[%clk 0:02:33.2]} 21.
d5 {[%clk 0:01:56.4]} 21... cxd5 {[%clk 0:02:25.3]} 22. exd5 {[%clk 0:01:55.2]}
22... Bf6 {[%clk 0:02:25.4]} 23. Bxf6 {[%clk 0:01:43.2]} 23... gxf6 {[%clk
0:02:24.5]} 24. dxe6 {[%clk 0:01:37.8]} 24... fxe6 {[%clk 0:02:23.5]} 25. Rxd8+
{[%clk 0:01:27.6]} 25... Rxd8 {[%clk 0:02:24.4]} 26. Bc6 {[%clk 0:01:27.3]}
26... Rb8 {[%clk 0:02:14.5]} 27. Rb1 {[%clk 0:01:13.8]} 27... Nc5 {[%clk
0:02:13.4]} 28. Rd1 {[%clk 0:01:03.4]} 28... Kf7 {[%clk 0:02:11.7]} 29. Kf1
{[%clk 0:00:56.9]} 29... Rb6 {[%clk 0:02:08.7]} 30. Bf3 {[%clk 0:00:54.9]} 30...
Ke7 {[%clk 0:02:08.6]} 31. Ke2 {[%clk 0:00:51.4]} 31... Na4 {[%clk 0:02:08]} 32.
Rd2 {[%clk 0:00:47.2]} 32... b4 {[%clk 0:02:04.2]} 33. axb4 {[%clk 0:00:42]}
33... Rxb4 {[%clk 0:02:03.5]} 34. Be4 {[%clk 0:00:32.8]} 34... f5 {[%clk
0:02:00.3]} 35. Bc6 {[%clk 0:00:30.3]} 35... Nxb2 {[%clk 0:01:59.7]} 36. Rd7+
{[%clk 0:00:26.9]} 36... Kf6 {[%clk 0:01:59.6]} 37. Kd2 {[%clk 0:00:23.4]} 37...
Nd3 {[%clk 0:01:52.4]} 38. Rxh7 {[%clk 0:00:23.2]} 38... Rb2+ {[%clk 0:01:48.1]}
39. Kc3 {[%clk 0:00:23.4]} 39... Rxf2 {[%clk 0:01:48.3]} 40. Kxc4 {[%clk
0:00:16.6]} 40... Ne5+ {[%clk 0:01:47.3]} 41. Kb5 {[%clk 0:00:16.5]} 41... Rb2+
{[%clk 0:01:46.8]} 42. Ka4 {[%clk 0:00:13]} 42... Nxc6 {[%clk 0:01:46.5]} 43. h4
{[%clk 0:00:13.5]} 43... Rg2 {[%clk 0:01:45.6]} 44. Kb5 {[%clk 0:00:13]} 44...
Ne5 {[%clk 0:01:44.6]} 45. Rh6+ {[%clk 0:00:11.8]} 45... Ke7 {[%clk 0:01:44.5]}
46. Kc5 {[%clk 0:00:09.6]} 46... Rxg3 {[%clk 0:01:42.4]} 47. h5 {[%clk
0:00:10.1]} 47... Rh3 {[%clk 0:01:42.2]} 48. Rh7+ {[%clk 0:00:09.3]} 48... Nf7
{[%clk 0:01:42]} 49. Kd4 {[%clk 0:00:08.6]} 49... Kf6 {[%clk 0:01:42.2]} 50. Kc5
{[%clk 0:00:06.6]} 50... f4 {[%clk 0:01:42.5]} 51. Kd4 {[%clk 0:00:06.7]} 51...
f3 {[%clk 0:01:42.4]} 52. Ke3 {[%clk 0:00:07]} 52... e5 {[%clk 0:01:42.9]} 53.
Kf2 {[%clk 0:00:07.2]} 53... e4 {[%clk 0:01:43.1]} 54. Ke3 {[%clk 0:00:07.4]}
54... Rh2 {[%clk 0:01:42.7]} 55. h6 {[%clk 0:00:07.5]} 55... Rxh6 {[%clk
0:01:40.9]} 56. Rxh6+ {[%clk 0:00:07]} 56... Nxh6 {[%clk 0:01:41.8]} 57. Kf2
{[%clk 0:00:07.5]} 57... Kf5 {[%clk 0:01:41.8]} 58. Ke3 {[%clk 0:00:08.4]} 58...
Ng4+ {[%clk 0:01:42]} 59. Kd2 {[%clk 0:00:08.6]} 59... Kf4 {[%clk 0:01:42.5]}
60. Ke1 {[%clk 0:00:09]} 60... Ke3 {[%clk 0:01:42.1]} 61. Kf1 {[%clk 0:00:09.9]}
61... f2 {[%clk 0:01:42.7]} 62. Kg2 {[%clk 0:00:09.4]} 62... Ke2 {[%clk
0:01:43.3]} 63. Kg3 {[%clk 0:00:08.7]} 63... f1=Q {[%clk 0:01:43.7]} 64. Kh4
{[%clk 0:00:08.8]} 64... Kd2 {[%clk 0:01:43.3]} 65. Kg3 {[%clk 0:00:09]} 65...
e3 {[%clk 0:01:43.2]} 66. Kh4 {[%clk 0:00:09.2]} 66... Ne5 {[%clk 0:01:42.6]}
67. Kg3 {[%clk 0:00:10.1]} 67... Qf3+ {[%clk 0:01:42.2]} 68. Kh2 {[%clk
0:00:10.3]} 68... Ng4+ {[%clk 0:01:42.2]} 69. Kg1 {[%clk 0:00:10.6]} 69... Qf2+
{[%clk 0:01:42.9]} 70. Kh1 {[%clk 0:00:11]} 70... Qh2# {[%clk 0:01:43.6]} 0-1

[Event "*** Titled Tuesday Blitz"]
[Site "Chess.com"]
[Date "2021.02.02"]
[Round "9"]
[White "LawrenceTrent"]
[Black "eCztery"]
[Result "1-0"]
[WhiteElo "2584"]
[BlackElo "2444"]
[TimeControl "180+1"]
[EndTime "11:46:00 PST"]
[Termination "LawrenceTrent won by resignation"]

1. Nf3 {[%clk 0:03:00.9]} 1... g6 {[%clk 0:02:56.5]} 2. e3 {[%clk 0:03:01.8]}
2... Bg7 {[%clk 0:02:54]} 3. d4 {[%clk 0:03:02.2]} 3... f5 {[%clk 0:02:51.5]} 4.
h4 {[%clk 0:03:01.9]} 4... Nf6 {[%clk 0:02:49]} 5. Bd3 {[%clk 0:03:00.2]} 5...
b6 {[%clk 0:02:46.9]} 6. h5 {[%clk 0:02:56.5]} 6... Bb7 {[%clk 0:02:44.3]} 7. h6
{[%clk 0:02:56]} 7... Bf8 {[%clk 0:02:44.5]} 8. b3 {[%clk 0:02:56.5]} 8... Ng4
{[%clk 0:02:24.6]} 9. Bb2 {[%clk 0:02:54.6]} 9... Bxh6 {[%clk 0:02:12]} 10. Ne5
{[%clk 0:02:51.5]} 10... Nxe5 {[%clk 0:02:00.1]} 11. dxe5 {[%clk 0:02:43.1]}
11... Bg7 {[%clk 0:01:59.1]} 12. Bxf5 {[%clk 0:02:42.5]} 12... gxf5 {[%clk
0:01:44.7]} 13. Qh5+ {[%clk 0:02:41.3]} 13... Kf8 {[%clk 0:01:45.1]} 14. Qxf5+
{[%clk 0:02:41.6]} 14... Kg8 {[%clk 0:01:45.4]} 15. e6 {[%clk 0:02:40.3]} 15...
Qf8 {[%clk 0:01:23]} 16. Qg4 {[%clk 0:02:40]} 16... h5 {[%clk 0:01:08.1]} 17.
Qg5 {[%clk 0:02:30.4]} 17... dxe6 {[%clk 0:01:03.4]} 18. Rh3 {[%clk 0:02:22.7]}
18... Nd7 {[%clk 0:01:01.3]} 19. Rg3 {[%clk 0:02:22.5]} 19... Nf6 {[%clk
0:01:01.5]} 20. Nd2 {[%clk 0:02:21.5]} 20... h4 {[%clk 0:01:01.4]} 21. Rh3
{[%clk 0:02:18.9]} 21... Rh5 {[%clk 0:00:54.6]} 22. Qf4 {[%clk 0:02:16.4]} 22...
Bxg2 {[%clk 0:00:48]} 23. Rxh4 {[%clk 0:02:13.5]} 23... Rxh4 {[%clk 0:00:45.7]}
24. Qxh4 {[%clk 0:02:13.5]} 24... Qf7 {[%clk 0:00:45.8]} 25. O-O-O {[%clk
0:02:13.1]} 25... Rd8 {[%clk 0:00:38.8]} 26. Rg1 {[%clk 0:02:12.3]} 26... Bb7
{[%clk 0:00:33.7]} 27. Nc4 {[%clk 0:02:12.1]} 27... Rd5 {[%clk 0:00:13.8]} 28.
Ne5 {[%clk 0:02:11.2]} 28... Rxe5 {[%clk 0:00:14.1]} 29. Bxe5 {[%clk 0:02:10.9]}
29... Kf8 {[%clk 0:00:14.5]} 30. Qa4 {[%clk 0:02:05.2]} 30... a5 {[%clk
0:00:13.5]} 31. Qc4 {[%clk 0:02:04.5]} 31... Ne8 {[%clk 0:00:11.1]} 32. Bxg7+
{[%clk 0:02:04.1]} 32... Nxg7 {[%clk 0:00:12]} 33. Qxc7 {[%clk 0:02:04.3]} 33...
Bd5 {[%clk 0:00:12.2]} 34. f4 {[%clk 0:02:02.8]} 34... Qf5 {[%clk 0:00:11.6]}
35. Qxb6 {[%clk 0:01:59.7]} 35... Qe4 {[%clk 0:00:11.3]} 36. Rg3 {[%clk
0:01:53.1]} 36... Qh1+ {[%clk 0:00:09.9]} 37. Kb2 {[%clk 0:01:52.8]} 37... Qe4
{[%clk 0:00:09.6]} 38. Qxa5 {[%clk 0:01:52.3]} 38... Kf7 {[%clk 0:00:09]} 39.
Qc3 {[%clk 0:01:51.1]} 39... Qh7 {[%clk 0:00:07.6]} 40. Rxg7+ {[%clk 0:01:47.2]}
40... Qxg7 {[%clk 0:00:07.6]} 41. Qxg7+ {[%clk 0:01:48.1]} 41... Kxg7 {[%clk
0:00:08.5]} 42. Kc3 {[%clk 0:01:48.4]} 42... Kf6 {[%clk 0:00:08.8]} 43. Kd4
{[%clk 0:01:49.1]} 43... Kf5 {[%clk 0:00:07.4]} 44. c4 {[%clk 0:01:48.5]} 44...
Bf3 {[%clk 0:00:06.5]} 45. b4 {[%clk 0:01:47.6]} 45... e5+ {[%clk 0:00:07.4]}
46. fxe5 {[%clk 0:01:47.2]} 46... Ke6 {[%clk 0:00:08.3]} 47. e4 {[%clk
0:01:46.1]} 47... Kd7 {[%clk 0:00:08.2]} 48. b5 {[%clk 0:01:44.9]} 48... Bd1
{[%clk 0:00:07.4]} 49. Kd5 {[%clk 0:01:41.2]} 49... e6+ {[%clk 0:00:06.9]} 50.
Kc5 {[%clk 0:01:41.7]} 50... Bc2 {[%clk 0:00:07.3]} 51. Kb6 {[%clk 0:01:40.5]}
51... Bxe4 {[%clk 0:00:06.8]} 52. a4 {[%clk 0:01:40.8]} 52... Bc2 {[%clk
0:00:05.1]} 53. a5 {[%clk 0:01:41]} 53... Kc8 {[%clk 0:00:04.8]} 54. c5 {[%clk
0:01:41.9]} 54... Bd3 {[%clk 0:00:04.8]} 55. Kc6 {[%clk 0:01:41.1]} 55... Be4+
{[%clk 0:00:04.5]} 56. Kd6 {[%clk 0:01:41.6]} 56... Bd3 {[%clk 0:00:05]} 57. b6
{[%clk 0:01:40.2]} 57... Be4 {[%clk 0:00:03.8]} 58. Kxe6 {[%clk 0:01:40.4]}
58... Kb7 {[%clk 0:00:03.5]} 59. Kd6 {[%clk 0:01:39.8]} 59... Bc2 {[%clk
0:00:02.6]} 60. c6+ {[%clk 0:01:39.7]} 60... Ka6 {[%clk 0:00:02.1]} 61. b7
{[%clk 0:01:38.2]} 61... Ka7 {[%clk 0:00:02]} 62. Kc7 {[%clk 0:01:37.6]} 62...
Ka6 {[%clk 0:00:02.4]} 63. b8=Q {[%clk 0:01:37.7]} 63... Bb3 {[%clk 0:00:02.3]}
1-0

[Event "*** Titled Tuesday Blitz"]
[Site "Chess.com"]
[Date "2021.02.02"]
[Round "9"]
[White "KruHor"]
[Black "ChessFighter1975"]
[Result "1-0"]
[WhiteElo "2576"]
[BlackElo "2435"]
[TimeControl "180+1"]
[EndTime "11:46:00 PST"]
[Termination "KruHor won by resignation"]

1. e4 {[%clk 0:02:12.9]} 1... d6 {[%clk 0:03:00.3]} 2. d4 {[%clk 0:02:12.1]}
2... Nf6 {[%clk 0:03:00.9]} 3. Nc3 {[%clk 0:02:11.5]} 3... Nbd7 {[%clk
0:03:01.5]} 4. f4 {[%clk 0:02:09.6]} 4... e5 {[%clk 0:03:01.7]} 5. Nf3 {[%clk
0:02:07.4]} 5... exd4 {[%clk 0:03:01.9]} 6. Qxd4 {[%clk 0:02:06.8]} 6... c6
{[%clk 0:03:01.6]} 7. Bc4 {[%clk 0:02:03]} 7... d5 {[%clk 0:03:01.5]} 8. exd5
{[%clk 0:02:01.4]} 8... Bc5 {[%clk 0:03:02]} 9. Qd3 {[%clk 0:02:00.4]} 9... O-O
{[%clk 0:03:02.5]} 10. Ne5 {[%clk 0:01:52.2]} 10... Re8 {[%clk 0:02:58.3]} 11.
dxc6 {[%clk 0:01:43.8]} 11... bxc6 {[%clk 0:02:55.4]} 12. Be3 {[%clk 0:01:39.9]}
12... Bxe3 {[%clk 0:02:51.4]} 13. Bxf7+ {[%clk 0:01:37]} 13... Kh8 {[%clk
0:02:43.7]} 14. Bxe8 {[%clk 0:01:36.7]} 14... Bf2+ {[%clk 0:02:06.3]} 15. Kxf2
{[%clk 0:01:32.4]} 15... Qxe8 {[%clk 0:02:06.5]} 16. Rhe1 {[%clk 0:01:30.2]}
16... Nxe5 {[%clk 0:02:03.5]} 17. fxe5 {[%clk 0:01:29.7]} 17... Ng4+ {[%clk
0:02:00.6]} 18. Kg1 {[%clk 0:01:29.4]} 18... Be6 {[%clk 0:01:59.4]} 19. h3
{[%clk 0:01:27.6]} 19... Nh6 {[%clk 0:01:59.9]} 20. Rad1 {[%clk 0:01:26.8]}
20... Qh5 {[%clk 0:01:49.3]} 21. Ne4 {[%clk 0:01:22.6]} 21... Bd5 {[%clk
0:01:31.4]} 22. c4 {[%clk 0:01:20.2]} 22... Bxe4 {[%clk 0:01:18.4]} 23. Qxe4
{[%clk 0:01:19.9]} 23... Qg5 {[%clk 0:00:57]} 24. e6 {[%clk 0:01:18.6]} 24...
Re8 {[%clk 0:00:50.5]} 25. e7 {[%clk 0:01:17.6]} 25... Nf7 {[%clk 0:00:42]} 26.
Rd8 {[%clk 0:01:07.6]} 26... Qc5+ {[%clk 0:00:20.9]} 27. Kh1 {[%clk 0:01:04]}
27... Nxd8 {[%clk 0:00:20.1]} 28. exd8=Q {[%clk 0:00:57]} 28... Rxd8 {[%clk
0:00:21]} 29. Qe8+ {[%clk 0:00:54.3]} 29... Qf8 {[%clk 0:00:21.4]} 30. Qxc6
{[%clk 0:00:54]} 30... Rc8 {[%clk 0:00:19.3]} 31. Qd7 {[%clk 0:00:53]} 31... a5
{[%clk 0:00:16.6]} 32. c5 {[%clk 0:00:52.4]} 32... h6 {[%clk 0:00:11.3]} 33. c6
{[%clk 0:00:52]} 33... Rd8 {[%clk 0:00:11.1]} 34. Qe7 {[%clk 0:00:50.4]} 34...
Qxe7 {[%clk 0:00:09.5]} 35. Rxe7 {[%clk 0:00:49.8]} 35... Rd1+ {[%clk
0:00:10.4]} 36. Kh2 {[%clk 0:00:49.3]} 36... Rc1 {[%clk 0:00:11.3]} 37. c7
{[%clk 0:00:48.9]} 37... Kh7 {[%clk 0:00:12.2]} 38. b3 {[%clk 0:00:46.6]} 38...
Kg6 {[%clk 0:00:11.3]} 39. a3 {[%clk 0:00:46.2]} 39... Kf6 {[%clk 0:00:11.4]}
40. Rd7 {[%clk 0:00:46.1]} 40... g5 {[%clk 0:00:11.2]} 41. b4 {[%clk 0:00:45.8]}
41... axb4 {[%clk 0:00:10.7]} 42. axb4 {[%clk 0:00:45.7]} 42... h5 {[%clk
0:00:11.6]} 43. b5 {[%clk 0:00:45]} 43... Ke6 {[%clk 0:00:11.9]} 44. Rh7 {[%clk
0:00:43.9]} 44... h4 {[%clk 0:00:09.4]} 45. b6 {[%clk 0:00:43.4]} 1-0

[Event "*** Titled Tuesday Blitz"]
[Site "Chess.com"]
[Date "2021.02.02"]
[Round "9"]
[White "PerAsperaAdAstraCB"]
[Black "SergeyShtyka"]
[Result "1-0"]
[WhiteElo "2368"]
[BlackElo "2460"]
[TimeControl "180+1"]
[EndTime "11:46:00 PST"]
[Termination "PerAsperaAdAstraCB won on time"]

1. d4 {[%clk 0:03:00.9]} 1... c5 {[%clk 0:02:59.2]} 2. dxc5 {[%clk 0:03:00.3]}
2... e5 {[%clk 0:02:58.3]} 3. Nc3 {[%clk 0:03:00.7]} 3... Bxc5 {[%clk
0:02:58.2]} 4. Ne4 {[%clk 0:03:00.8]} 4... Be7 {[%clk 0:02:58.3]} 5. Nd6+ {[%clk
0:03:00.5]} 5... Bxd6 {[%clk 0:02:58.3]} 6. Qxd6 {[%clk 0:03:01.4]} 6... Qe7
{[%clk 0:02:58.8]} 7. Qxe7+ {[%clk 0:02:55.6]} 7... Nxe7 {[%clk 0:02:59.7]} 8.
e4 {[%clk 0:02:56]} 8... d5 {[%clk 0:02:59.5]} 9. exd5 {[%clk 0:02:55.5]} 9...
Nxd5 {[%clk 0:03:00.4]} 10. c3 {[%clk 0:02:55.9]} 10... Nc6 {[%clk 0:02:58.7]}
11. Nf3 {[%clk 0:02:54.8]} 11... f6 {[%clk 0:02:57.7]} 12. Bb5 {[%clk
0:02:53.7]} 12... Bd7 {[%clk 0:02:57.2]} 13. O-O {[%clk 0:02:54.2]} 13... O-O-O
{[%clk 0:02:53.7]} 14. Rd1 {[%clk 0:02:53.8]} 14... Nc7 {[%clk 0:02:51.8]} 15.
Bc4 {[%clk 0:02:52.4]} 15... Bg4 {[%clk 0:02:50.6]} 16. Be2 {[%clk 0:02:50.4]}
16... Rxd1+ {[%clk 0:02:28.4]} 17. Bxd1 {[%clk 0:02:51.3]} 17... e4 {[%clk
0:02:12.2]} 18. h3 {[%clk 0:02:51]} 18... Rd8 {[%clk 0:02:07.2]} 19. Be3 {[%clk
0:02:45.6]} 19... Bh5 {[%clk 0:02:00.5]} 20. g4 {[%clk 0:02:45.4]} 20... Bf7
{[%clk 0:01:50.5]} 21. Nd2 {[%clk 0:02:40.9]} 21... Bg6 {[%clk 0:01:42.8]} 22.
Bc2 {[%clk 0:02:39.4]} 22... Re8 {[%clk 0:01:39.3]} 23. Nc4 {[%clk 0:02:37.3]}
23... Rd8 {[%clk 0:01:28.7]} 24. Nd2 {[%clk 0:02:29]} 24... Re8 {[%clk
0:01:26.9]} 25. Nc4 {[%clk 0:02:29]} 25... Re6 {[%clk 0:01:24.5]} 26. Rd1 {[%clk
0:02:27.4]} 26... b5 {[%clk 0:01:11.2]} 27. Nd6+ {[%clk 0:02:26.1]} 27... Kb8
{[%clk 0:01:11.6]} 28. Bf4 {[%clk 0:02:16.2]} 28... a6 {[%clk 0:01:04.1]} 29.
Nf5 {[%clk 0:02:10.3]} 29... Bxf5 {[%clk 0:00:57.3]} 30. gxf5 {[%clk 0:02:09.5]}
30... Re7 {[%clk 0:00:57.8]} 31. Rd6 {[%clk 0:02:08.4]} 31... Kb7 {[%clk
0:00:53.4]} 32. Kg2 {[%clk 0:02:05]} 32... b4 {[%clk 0:00:49]} 33. Ba4 {[%clk
0:01:55.3]} 33... Nb5 {[%clk 0:00:41.5]} 34. Rxc6 {[%clk 0:01:21.5]} 34... Kxc6
{[%clk 0:00:14]} 35. c4 {[%clk 0:01:21.6]} 35... Rd7 {[%clk 0:00:08.8]} 36.
cxb5+ {[%clk 0:01:20.3]} 36... axb5 {[%clk 0:00:09.7]} 37. Bb3 {[%clk
0:01:16.8]} 37... Rd3 {[%clk 0:00:10.3]} 38. Be3 {[%clk 0:01:15.4]} 38... g6
{[%clk 0:00:08.8]} 39. Kg3 {[%clk 0:01:14.4]} 39... g5 {[%clk 0:00:06.6]} 40.
Kg4 {[%clk 0:01:11.8]} 40... Rd8 {[%clk 0:00:02]} 41. Kh5 {[%clk 0:01:11.5]}
41... Rf8 {[%clk 0:00:01.7]} 42. Kh6 {[%clk 0:01:11.7]} 42... Kd6 {[%clk
0:00:01]} 43. Kxh7 {[%clk 0:01:11.8]} 43... Ke5 {[%clk 0:00:01.5]} 44. Bc5
{[%clk 0:01:03.7]} 44... Rc8 {[%clk 0:00:01.7]} 45. Bxb4 {[%clk 0:01:00.6]}
45... Kxf5 {[%clk 0:00:02.1]} 46. Bc3 {[%clk 0:00:56.1]} 46... Rc7+ {[%clk
0:00:01.8]} 47. Kg8 {[%clk 0:00:53.6]} 1-0